[Event "Argentine Youth-Junior-ch 2025"]
[Site "Mar del Plata"]
[Date "2025.04.20"]
[Round "8.1"]
[White "Parrilla, Juan Jose"]
[Black "Scarsi, Anna Laura"]
[Result "1-0"]
[Annotator "NA"]
[ECO "B40"]
[WhiteElo "1912"]
[BlackElo "2144"]
[PlyCount "91"]
[EventDate "2025.04.14"]
[EventType "swiss"]
[EventCountry "ARG"]
[SourceTitle "playchess.com"]
[Source "ChessBase"]
[SourceQuality "1"]
[TimeControl "3600+30"]

1. e4 {[%emt 0:00:04]} c5 {[%emt 0:00:03]} 2. Nf3 {[%emt 0:00:08]} e6 {[%emt 0:00:03]} 3. g3 {[%emt 0:00:08]} Nc6 {[%emt 0:00:04]} 4. Bg2 {[%emt 0:00:06]} Nf6 {[%emt 0:00:02]} 5. Qe2 {[%emt 0:00:07]} e5 {[%emt 0:00:05]} 6. O-O {[%emt 0:00:11]} Be7 {[%emt 0:00:12]} 7. d3 {[%emt 0:00:08]} O-O {[%emt 0:00:09]} 8. Na3 {[%emt 0:00:03]} Re8 {[%emt 0:00:59]} 9. Nc4 {[%emt 0:02:13]} Bf8 {[%emt 0:01:20]} 10. Bg5 {[%emt 0:08:03]} d6 {[%emt 0:02:55]} 11. Ne3 {[%emt 0:02:27]} h6 {[%emt 0:03:56]} 12. Bxf6 {[%emt 0:00:19]} Qxf6 {[%emt 0:00:04]} 13. Nd5 {[%emt 0:00:08]} Qd8 {[%emt 0:00:04]} 14. c3 {[%emt 0:03:22]} Be6 {[%emt 0:05:07]} 15. a4 {[%emt 0:03:06]} a6 {[%emt 0:06:58]} 16. Nd2 {[%emt 0:03:02]} Rb8 {[%emt 0:04:16]} 17. Nc4 {[%emt 0:05:37]} b5 {[%emt 0:00:49]} 18. axb5 {[%emt 0:00:14]} axb5 {[%emt 0:00:08]} 19. Nce3 {[%emt 0:00:07]} Qc8 {[%emt 0:04:46]} 20. f4 {[%emt 0:10:22]} Bxd5 {[%emt 0:13:43]} 21. Nxd5 {[%emt 0:04:12]} Ne7 {[%emt 0:02:48]} 22. Ne3 {[%emt 0:04:12]} exf4 {[%emt 0:02:38]} 23. gxf4 {[%emt 0:04:27]} b4 {[%emt 0:02:22]} 24. Qf3 {[%emt 0:01:54]} Ra8 {[%emt 0:05:21]} 25. Rac1 {[%emt 0:05:40]} bxc3 {[%emt 0:04:07]} 26. bxc3 {[%emt 0:00:07]} Ng6 {[%emt 0:01:08]} 27. Qg3 {[%emt 0:00:34]} Qd8 {[%emt 0:00:36]} 28. Nf5 {[%emt 0:00:10]} Kh7 {[%emt 0:02:43]} 29. h4 {[%emt 0:01:17]} Ne7 {[%emt 0:00:52]} 30. Ne3 {[%emt 0:00:25]} Ra3 {[%emt 0:00:58]} 31. h5 {[%emt 0:00:24]} Ng8 {[%emt 0:00:22]} 32. e5 {[%emt 0:05:33]} dxe5 {[%emt 0:01:26]} 33. Be4+ {[%emt 0:00:08]} Kh8 {[%emt 0:00:04]} 34. fxe5 {[%emt 0:00:11]} Ra7 {[%emt 0:00:12]} 35. Rf5 {[%emt 0:00:59]} g6 {[%emt 0:02:06]} 36. hxg6 {[%emt 0:01:58]} fxg6 {[%emt 0:00:05]} 37. Rf3 {[%emt 0:02:16]} Qg5 {[%emt 0:03:15]} 38. Qxg5 {[%emt 0:00:08]} hxg5 {[%emt 0:00:03]} 39. Ng4 {[%emt 0:00:25]} Kg7 {[%emt 0:00:11]} 40. Rcf1 {[%emt 0:00:12]} Rd8 {[%emt 0:00:55]} 41. e6 {[%emt 0:01:18]} Bd6 {[%emt 0:00:59]} 42. Rf7+ {[%emt 0:00:12]} Rxf7 {[%emt 0:00:07]} 43. Rxf7+ {[%emt 0:00:05]} Kh8 {[%emt 0:00:04]} 44. Bxg6 {[%emt 0:00:07]} Ne7 {[%emt 0:00:51]} 45. Rh7+ {[%emt 0:00:08]} Kg8 {[%emt 0:00:14]} 46. Nf6+ {[%emt 0:00:05]} 1-0

[Event "Argentine Youth-Junior-ch 2025"]
[Site "Mar del Plata"]
[Date "2025.04.20"]
[Round "8.3"]
[White "Gaite, Karen Nerina"]
[Black "Ulrich, Evelyn"]
[Result "1-0"]
[Annotator "RC"]
[ECO "A13"]
[WhiteElo "2031"]
[BlackElo "1529"]
[PlyCount "65"]
[EventDate "2025.04.14"]
[EventType "swiss"]
[EventCountry "ARG"]
[SourceTitle "playchess.com"]
[Source "ChessBase"]
[SourceQuality "1"]
[TimeControl "3600+30"]

1. c4 {[%emt 0:00:10]} c6 {[%emt 0:00:12]} 2. Nf3 {[%emt 0:00:05]} Nf6 {[%emt 0:00:08]} 3. b3 {[%emt 0:00:35]} d5 {[%emt 0:00:13]} 4. Bb2 {[%emt 0:01:09]} e6 {[%emt 0:02:23]} 5. g3 {[%emt 0:00:13]} Nbd7 {[%emt 0:00:42]} 6. Bg2 {[%emt 0:00:33]} Qb6 {[%emt 0:01:36]} 7. Qc2 {[%emt 0:04:37]} Bd6 {[%emt 0:02:13]} 8. d4 {[%emt 0:02:32]} O-O {[%emt 0:00:19]} 9. c5 {[%emt 0:01:03]} Nxc5 {[%emt 0:00:43]} 10. dxc5 {[%emt 0:00:08]} Bxc5 {[%emt 0:01:00]} 11. O-O {[%emt 0:00:53]} Ne4 {[%emt 0:01:28]} 12. e3 {[%emt 0:03:23]} Bd7 {[%emt 0:02:46]} 13. Nc3 {[%emt 0:01:46]} Nxc3 {[%emt 0:04:27]} 14. Bxc3 {[%emt 0:00:32]} f6 {[%emt 0:00:26]} 15. Rac1 {[%emt 0:04:57]} Ba3 {[%emt 0:03:42]} 16. Bb2 {[%emt 0:00:30]} Bxb2 {[%emt 0:00:09]} 17. Qxb2 {[%emt 0:00:07]} Rae8 {[%emt 0:00:24]} 18. Bh3 {[%emt 0:04:11]} c5 {[%emt 0:00:53]} 19. Rfd1 {[%emt 0:03:35]} Bc6 {[%emt 0:00:36]} 20. Qc3 {[%emt 0:06:02]} d4 {[%emt 0:02:10]} 21. exd4 {[%emt 0:00:25]} Bxf3 {[%emt 0:00:35]} 22. Qxf3 {[%emt 0:00:05]} cxd4 {[%emt 0:00:10]} 23. Qe4 {[%emt 0:03:47]} e5 {[%emt 0:00:35]} 24. Rc4 {[%emt 0:05:48]} Qa6 {[%emt 0:01:07]} 25. Rd2 {[%emt 0:00:24]} Rd8 {[%emt 0:05:51]} 26. Bf5 {[%emt 0:01:08]} h6 {[%emt 0:01:05]} 27. Qg4 {[%emt 0:00:44]} g5 {[%emt 0:02:31]} 28. Rc7 {[%emt 0:02:59]} Qa5 {[%emt 0:01:04]} 29. Rdc2 {[%emt 0:00:34]} d3 {[%emt 0:01:10]} 30. Qh5 {[%emt 0:00:45]} Qe1+ {[%emt 0:03:31]} 31. Kg2 {[%emt 0:00:07]} dxc2 {[%emt 0:02:02]} 32. Qg6+ {[%emt 0:00:10]} Kh8 {[%emt 0:00:11]} 33. Qh7# {[%emt 0:00:09]} 1-0

[Event "Argentine Youth-Junior-ch 2025"]
[Site "Mar del Plata"]
[Date "2025.04.20"]
[Round "8.4"]
[White "Lopez Maffia, Franco"]
[Black "Villordo, Matias"]
[Result "1/2-1/2"]
[Annotator "RC"]
[ECO "A04"]
[WhiteElo "2052"]
[BlackElo "2055"]
[PlyCount "24"]
[EventDate "2025.04.14"]
[EventType "swiss"]
[EventCountry "ARG"]
[SourceTitle "playchess.com"]
[Source "ChessBase"]
[SourceQuality "1"]
[TimeControl "3600+30"]

1. Nf3 {[%emt 0:00:26]} c5 {[%emt 0:02:52]} 2. b3 {[%emt 0:00:21]} Nc6 {[%emt 0:00:37]} 3. Bb2 {[%emt 0:00:06]} d6 {[%emt 0:00:43]} 4. e3 {[%emt 0:05:22]} e6 {[%emt 0:07:32]} 5. Be2 {[%emt 0:00:07]} Nf6 {[%emt 0:00:15]} 6. O-O {[%emt 0:00:06]} Be7 {[%emt 0:02:08]} 7. c4 {[%emt 0:02:14]} O-O {[%emt 0:00:55]} 8. d4 {[%emt 0:02:12]} d5 {[%emt 0:01:08]} 9. cxd5 {[%emt 0:08:06]} Nxd5 {[%emt 0:00:24]} 10. Nbd2 {[%emt 0:00:58]} b6 {[%emt 0:10:09]} 11. Nc4 {[%emt 0:07:46]} Bb7 {[%emt 0:03:47]} 12. Rc1 {[%emt 0:01:47]} Rc8 {[%emt 0:36:00]} 1/2-1/2

[Event "Argentine Youth-Junior-ch 2025"]
[Site "Mar del Plata"]
[Date "2025.04.20"]
[Round "8.6"]
[White "Speisky, Mateo"]
[Black "Bazan Romero, Octavio Aaron"]
[Result "1/2-1/2"]
[Annotator "ChessBase"]
[ECO "B90"]
[WhiteElo "1791"]
[BlackElo "2292"]
[PlyCount "113"]
[EventDate "2025.04.14"]
[EventType "swiss"]
[EventCountry "ARG"]
[SourceTitle "playchess.com"]
[Source "ChessBase"]
[SourceQuality "1"]
[TimeControl "3600+30"]

1. e4 {[%emt 0:00:05]} c5 {[%emt 0:00:52]} 2. Nf3 {[%emt 0:00:20]} d6 {[%emt 0:00:11]} 3. d4 {[%emt 0:00:12]} cxd4 {[%emt 0:00:02]} 4. Nxd4 {[%emt 0:00:02]} Nf6 {[%emt 0:00:10]} 5. Nc3 {[%emt 0:00:10]} a6 {[%emt 0:00:05]} 6. Be3 {[%emt 0:00:10]} e5 {[%emt 0:00:09]} 7. Nb3 {[%emt 0:00:11]} Be6 {[%emt 0:00:08]} 8. f3 {[%emt 0:00:11]} h5 {[%emt 0:00:06]} 9. Nd5 {[%emt 0:00:26]} Bxd5 {[%emt 0:02:04]} 10. exd5 {[%emt 0:00:12]} Nbd7 {[%emt 0:00:30]} 11. Qd2 {[%emt 0:00:17]} g6 {[%emt 0:00:09]} 12. Be2 {[%emt 0:00:51]} Bg7 {[%emt 0:01:45]} 13. O-O {[%emt 0:01:43]} O-O {[%emt 0:00:31]} 14. c4 {[%emt 0:00:59]} a5 {[%emt 0:06:22]} 15. Rac1 {[%emt 0:04:44]} b6 {[%emt 0:02:43]} 16. Na1 {[%emt 0:04:08]} Nc5 {[%emt 0:04:32]} 17. b3 {[%emt 0:06:26]} Nfd7 {[%emt 0:06:26]} 18. Nc2 {[%emt 0:08:17]} f5 {[%emt 0:02:02]} 19. Na3 {[%emt 0:06:55]} f4 {[%emt 0:05:31]} 20. Bf2 {[%emt 0:00:11]} Qf6 {[%emt 0:07:36]} 21. Nb5 {[%emt 0:02:39]} Rae8 {[%emt 0:02:45]} 22. Qc2 {[%emt 0:03:46]} g5 {[%emt 0:04:09]} 23. a3 {[%emt 0:01:40]} e4 {[%emt 0:04:47]} 24. fxe4 {[%emt 0:05:56]} g4 {[%emt 0:01:08]} 25. Bd3 {[%emt 0:04:47]} Ne5 {[%emt 0:02:08]} 26. Bxc5 {[%emt 0:00:23]} bxc5 {[%emt 0:00:17]} 27. Nc7 {[%emt 0:02:54]} Nxd3 {[%emt 0:05:32]} 28. Qxd3 {[%emt 0:00:01]} Qd4+ {[%emt 0:00:25]} 29. Qxd4 {[%emt 0:00:02]} Bxd4+ {[%emt 0:00:10]} 30. Kh1 {[%emt 0:00:07]} Rxe4 {[%emt 0:00:53]} 31. Rce1 {[%emt 0:06:16]} Rxe1 {[%emt 0:02:45]} 32. Rxe1 {[%emt 0:00:01]} f3 {[%emt 0:00:37]} 33. Rf1 {[%emt 0:04:42]} f2 {[%emt 0:01:48]} 34. Ne6 {[%emt 0:00:19]} Rf5 {[%emt 0:00:48]} 35. g3 {[%emt 0:01:40]} Rf3 {[%emt 0:01:05]} 36. Kg2 {[%emt 0:00:01]} Rxb3 {[%emt 0:01:03]} 37. Nxd4 {[%emt 0:00:43]} cxd4 {[%emt 0:00:04]} 38. Rxf2 {[%emt 0:00:50]} d3 {[%emt 0:00:50]} 39. Rd2 {[%emt 0:01:08]} Rxa3 {[%emt 0:00:30]} 40. Kf2 {[%emt 0:00:14]} Rc3 {[%emt 0:01:24]} 41. Ke3 {[%emt 0:00:03]} Rxc4 {[%emt 0:01:42]} 42. Kxd3 {[%emt 0:00:07]} Rc5 {[%emt 0:00:34]} 43. Ke4 {[%emt 0:01:24]} a4 {[%emt 0:01:02]} 44. Kf5 {[%emt 0:00:01]} a3 {[%emt 0:00:07]} 45. Kg6 {[%emt 0:01:03]} Ra5 {[%emt 0:00:33]} 46. Ra2 {[%emt 0:00:36]} Ra4 {[%emt 0:02:06]} 47. Kxh5 {[%emt 0:02:47]} Kf7 {[%emt 0:00:12]} 48. Kg5 {[%emt 0:00:20]} Ke7 {[%emt 0:00:26]} 49. Kf5 {[%emt 0:00:39]} Kd7 {[%emt 0:00:27]} 50. Kf6 {[%emt 0:00:25]} Kc7 {[%emt 0:00:41]} 51. Ke6 {[%emt 0:00:25]} Ra6 {[%emt 0:01:25]} 52. Ke7 {[%emt 0:02:19]} Ra8 {[%emt 0:00:45]} 53. Ke6 {[%emt 0:01:00]} Ra4 {[%emt 0:00:22]} 54. Ke7 {[%emt 0:00:19]} Ra8 {[%emt 0:00:45]} 55. Ke6 {[%emt 0:00:02]} Ra6 {[%emt 0:00:13]} 56. Ke7 {[%emt 0:00:02]} Ra8 {[%emt 0:00:32]} 57. Ke6 {[%emt 0:02:49]} 1/2-1/2

[Event "Argentine Youth-Junior-ch 2025"]
[Site "Mar del Plata"]
[Date "2025.04.20"]
[Round "8.7"]
[White "Rojas, Lautaro"]
[Black "Duarte Fernandez, Agustin"]
[Result "1/2-1/2"]
[Annotator "NA"]
[ECO "B06"]
[WhiteElo "1865"]
[BlackElo "2001"]
[PlyCount "98"]
[EventDate "2025.04.14"]
[EventType "swiss"]
[EventCountry "ARG"]
[SourceTitle "playchess.com"]
[Source "ChessBase"]
[SourceQuality "1"]
[TimeControl "3600+30"]

1. e4 {[%emt 0:00:09]} g6 {[%emt 0:00:05]} 2. d4 {[%emt 0:00:02]} Bg7 {[%emt 0:00:04]} 3. Nc3 {[%emt 0:00:05]} a6 {[%emt 0:00:05]} 4. a4 {[%emt 0:00:03]} d6 {[%emt 0:00:13]} 5. f4 {[%emt 0:00:06]} b6 {[%emt 0:00:11]} 6. Nf3 {[%emt 0:00:10]} Bb7 {[%emt 0:01:11]} 7. Bc4 {[%emt 0:00:25]} e6 {[%emt 0:00:15]} 8. O-O {[%emt 0:00:33]} Ne7 {[%emt 0:02:14]} 9. f5 {[%emt 0:02:19]} gxf5 {[%emt 0:21:26]} 10. exf5 {[%emt 0:00:43]} Nxf5 {[%emt 0:00:24]} 11. Ng5 {[%emt 0:11:27]} Bxd4+ {[%emt 0:01:41]} 12. Kh1 {[%emt 0:01:15]} Qf6 {[%emt 0:03:06]} 13. Rxf5 {[%emt 0:25:02]} exf5 {[%emt 0:03:06]} 14. Bxf7+ {[%emt 0:00:44]} Ke7 {[%emt 0:00:46]} 15. Nd5+ {[%emt 0:07:04]} Bxd5 {[%emt 0:00:34]} 16. Bxd5 {[%emt 0:00:17]} c6 {[%emt 0:00:24]} 17. Ne6 {[%emt 0:04:17]} cxd5 {[%emt 0:02:47]} 18. Bg5 {[%emt 0:00:53]} Kxe6 {[%emt 0:00:08]} 19. Bxf6 {[%emt 0:00:18]} Bxf6 {[%emt 0:00:08]} 20. g4 {[%emt 0:04:21]} f4 {[%emt 0:01:25]} 21. g5 {[%emt 0:02:45]} Be5 {[%emt 0:00:26]} 22. Qg4+ {[%emt 0:01:42]} Ke7 {[%emt 0:00:45]} 23. Re1 {[%emt 0:01:14]} Rf8 {[%emt 0:00:17]} 24. Qh4 {[%emt 0:00:38]} Nd7 {[%emt 0:00:38]} 25. g6+ {[%emt 0:00:24]} Nf6 {[%emt 0:00:17]} 26. Qxf4 {[%emt 0:00:59]} hxg6 {[%emt 0:00:15]} 27. Qb4 {[%emt 0:00:08]} Ke6 {[%emt 0:00:08]} 28. c4 {[%emt 0:00:43]} Rh8 {[%emt 0:00:53]} 29. Re2 {[%emt 0:01:20]} Rac8 {[%emt 0:01:01]} 30. b3 {[%emt 0:01:10]} dxc4 {[%emt 0:00:18]} 31. bxc4 {[%emt 0:00:05]} Rc5 {[%emt 0:00:23]} 32. Qxb6 {[%emt 0:00:24]} a5 {[%emt 0:00:26]} 33. Qb3 {[%emt 0:00:56]} Rh4 {[%emt 0:00:14]} 34. Rc2 {[%emt 0:01:04]} g5 {[%emt 0:01:04]} 35. Kg1 {[%emt 0:01:35]} Rf4 {[%emt 0:00:32]} 36. h3 {[%emt 0:01:59]} g4 {[%emt 0:00:59]} 37. hxg4 {[%emt 0:00:17]} Rxg4+ {[%emt 0:00:10]} 38. Kf1 {[%emt 0:00:42]} Rf4+ {[%emt 0:00:19]} 39. Kg2 {[%emt 0:00:35]} Ng4 {[%emt 0:00:25]} 40. Re2 {[%emt 0:00:44]} Rcxc4 {[%emt 0:00:43]} 41. Qb8 {[%emt 0:00:40]} Nf6 {[%emt 0:00:15]} 42. Qb3 {[%emt 0:00:28]} Rg4+ {[%emt 0:00:09]} 43. Kf1 {[%emt 0:00:24]} Nd5 {[%emt 0:00:12]} 44. Qh3 {[%emt 0:00:46]} Rcf4+ {[%emt 0:00:22]} 45. Rf2 {[%emt 0:00:15]} Rxf2+ {[%emt 0:00:23]} 46. Kxf2 {[%emt 0:00:06]} Nf6 {[%emt 0:00:06]} 47. Qb3+ {[%emt 0:00:06]} Kf5 {[%emt 0:00:09]} 48. Qh3 {[%emt 0:01:15]} Kg5 {[%emt 0:00:34]} 49. Qe3+ {[%emt 0:00:45]} Rf4+ {[%emt 0:00:14]} 1/2-1/2

[Event "Argentine Youth-Junior-ch 2025"]
[Site "Mar del Plata"]
[Date "2025.04.20"]
[Round "8.8"]
[White "Rojo Lynch, Candela"]
[Black "Donda, Jazmin"]
[Result "0-1"]
[Annotator "NA"]
[ECO "C02"]
[WhiteElo "1554"]
[BlackElo "1919"]
[PlyCount "152"]
[EventDate "2025.04.14"]
[EventType "swiss"]
[EventCountry "ARG"]
[SourceTitle "playchess.com"]
[Source "ChessBase"]
[SourceQuality "1"]
[TimeControl "3600+30"]

1. e4 {[%emt 0:00:00]} e6 {[%emt 0:00:00]} 2. d4 {[%emt 0:00:08]} d5 {[%emt 0:00:25]} 3. e5 {[%emt 0:00:04]} c5 {[%emt 0:00:04]} 4. c3 {[%emt 0:00:19]} Qb6 {[%emt 0:00:17]} 5. Nf3 {[%emt 0:00:11]} Bd7 {[%emt 0:00:07]} 6. Be3 {[%emt 0:00:29]} Bb5 {[%emt 0:22:48]} 7. Bxb5+ {[%emt 0:03:33]} Qxb5 {[%emt 0:00:02]} 8. Qd2 {[%emt 0:00:15]} c4 {[%emt 0:08:20]} 9. O-O {[%emt 0:02:07]} Ne7 {[%emt 0:00:46]} 10. Na3 {[%emt 0:02:05]} Qd7 {[%emt 0:02:45]} 11. b3 {[%emt 0:03:49]} Nf5 {[%emt 0:00:37]} 12. Nc2 {[%emt 0:00:48]} cxb3 {[%emt 0:02:31]} 13. axb3 {[%emt 0:00:30]} Nc6 {[%emt 0:02:00]} 14. c4 {[%emt 0:04:14]} Be7 {[%emt 0:04:43]} 15. c5 {[%emt 0:05:09]} O-O {[%emt 0:00:16]} 16. Kh1 {[%emt 0:03:45]} Kh8 {[%emt 0:06:29]} 17. Na3 {[%emt 0:03:26]} a6 {[%emt 0:01:44]} 18. g4 {[%emt 0:02:13]} Nh4 {[%emt 0:02:41]} 19. Nxh4 {[%emt 0:00:27]} Bxh4 {[%emt 0:00:02]} 20. g5 {[%emt 0:00:55]} f6 {[%emt 0:01:10]} 21. f4 {[%emt 0:04:13]} Qe8 {[%emt 0:06:43]} 22. Rf3 fxg5 {[%emt 0:07:00]} 23. Rg1 {[%emt 0:01:58]} Qg6 {[%emt 0:00:30]} 24. Nb1 {[%emt 0:08:18]} g4 {[%emt 0:00:30]} 25. Nc3 {[%emt 0:01:29]} Qf5 {[%emt 0:00:00]} 26. Qg2 {[%emt 0:00:53]} g5 {[%emt 0:00:00]} 27. Rff1 {[%emt 0:01:20]} Qd3 {[%emt 0:01:30]} 28. Nd1 {[%emt 0:00:46]} Qe4 {[%emt 0:00:00]} 29. Qxe4 {[%emt 0:01:28]} dxe4 30. fxg5 Rxf1 31. Rxf1 {[%emt 0:00:26]} Rg8 {[%emt 0:00:41]} 32. Nc3 {[%emt 0:01:09]} Bxg5 {[%emt 0:00:29]} 33. Bxg5 {[%emt 0:00:14]} Rxg5 34. Nxe4 {[%emt 0:00:09]} Rf5 {[%emt 0:01:13]} 35. Rxf5 {[%emt 0:21:10]} exf5 36. Nd6 {[%emt 0:00:00]} Nxd4 {[%emt 0:00:04]} 37. Nxb7 {[%emt 0:00:00]} Kg8 {[%emt 0:01:07]} 38. Nd8 {[%emt 0:00:00]} Kf8 {[%emt 0:00:22]} 39. c6 {[%emt 0:00:00]} Ke7 {[%emt 0:01:28]} 40. c7 {[%emt 0:00:00]} Kd7 {[%emt 0:00:01]} 41. Nb7 {[%emt 0:00:00]} Kxc7 {[%emt 0:00:14]} 42. Nc5 {[%emt 0:00:00]} a5 {[%emt 0:00:11]} 43. e6 {[%emt 0:00:00]} Kd6 {[%emt 0:00:53]} 44. Kg2 {[%emt 0:00:00]} Nc6 {[%emt 0:00:35]} 45. e7 {[%emt 0:00:00]} Kxe7 {[%emt 0:00:06]} 46. Kg3 {[%emt 0:00:00]} Kd6 {[%emt 0:00:45]} 47. Nd3 {[%emt 0:00:00]} Ne5 {[%emt 0:00:46]} 48. Nf4 {[%emt 0:00:00]} Ng6 {[%emt 0:00:37]} 49. Nd3 {[%emt 0:00:00]} h5 {[%emt 0:00:23]} 50. h4 {[%emt 0:00:00]} Kd5 {[%emt 0:00:45]} 51. b4 {[%emt 0:00:00]} a4 {[%emt 0:01:20]} 52. b5 {[%emt 0:00:00]} a3 {[%emt 0:00:30]} 53. b6 {[%emt 0:00:00]} Kc6 {[%emt 0:00:00]} 54. Nb4+ {[%emt 0:00:40]} Kxb6 {[%emt 0:00:00]} 55. Nd5+ {[%emt 0:00:13]} Ka5 {[%emt 0:00:00]} 56. Nc3 {[%emt 0:00:54]} Kb4 {[%emt 0:00:00]} 57. Na2+ {[%emt 0:00:19]} Kb3 {[%emt 0:00:00]} 58. Nc1+ {[%emt 0:00:15]} Kb2 {[%emt 0:00:00]} 59. Nd3+ {[%emt 0:00:10]} Kb1 {[%emt 0:03:30]} 60. Nb4 {[%emt 0:02:11]} a2 {[%emt 0:00:30]} 61. Nxa2 {[%emt 0:00:07]} Kxa2 {[%emt 0:00:00]} 62. Kf2 {[%emt 0:00:13]} Nxh4 {[%emt 0:00:00]} 63. Kg3 {[%emt 0:00:12]} Ng6 {[%emt 0:00:00]} 64. Kf2 {[%emt 0:00:04]} Kb3 {[%emt 0:00:00]} 65. Kg3 {[%emt 0:00:10]} Kc3 {[%emt 0:00:00]} 66. Kf2 {[%emt 0:00:11]} Kd4 {[%emt 0:00:00]} 67. Kg3 {[%emt 0:00:06]} f4+ {[%emt 0:00:00]} 68. Kf2 {[%emt 0:00:08]} Ke4 {[%emt 0:00:00]} 69. Kg2 {[%emt 0:00:09]} Ke3 {[%emt 0:00:00]} 70. Kf1 {[%emt 0:00:22]} Kf3 {[%emt 0:00:00]} 71. Kg1 {[%emt 0:00:06]} Ke2 {[%emt 0:00:00]} 72. Kh2 {[%emt 0:00:38]} f3 {[%emt 0:00:00]} 73. Kh1 {[%emt 0:00:28]} f2 {[%emt 0:00:00]} 74. Kh2 {[%emt 0:02:08]} h4 {[%emt 0:00:00]} 75. Kh1 {[%emt 0:00:31]} g3 {[%emt 0:00:00]} 76. Kg2 {[%emt 0:00:08]} f1=Q# {[%emt 0:00:00]} 0-1